[Event "FISCA Open 2022"]
[Site "Cap Aurora"]
[Date "2022.06.22"]
[Round "1.1"]
[White "Calota, Sorin"]
[Black "Petre, Nad-Titus"]
[Result "0-1"]
[ECO "A04"]
[WhiteElo "1609"]
[BlackElo "2297"]
[Annotator "TA"]
[PlyCount "59"]
[EventDate "2022.06.22"]
[EventType "swiss"]
[EventCountry "ROU"]
[SourceTitle "playchess.com"]
[Source "ChessBase"]
[SourceQuality "1"]
[TimeControl "5400+30"]

{[%evp 9,59,16,23,20,38,13,26,-25,-33,-33,-27,-60,-58,-91,-89,-70,-52,-49,-42,-74,-6,-25,-10,-64,-64,-72,-57,-57,-57,-62,-62,-62,-62,-70,-70,-62,-24,-58,-59,-62,-62,-62,-62,-62,-44,-64,-52,-93,-59,-85,-59,-64]} 1. Nf3 {[%emt 0:00:13]} c5 {[%emt 0:00:15]} 2. g3 {[%emt 0:00:26]} Nc6 {[%emt 0:00:25]} 3. Bg2 {[%emt 0:00:15]} e5 {[%emt 0:00:47]} 4. c4 {[%emt 0:00:36]} Be7 {[%emt 0:04:01]} 5. O-O {[%emt 0:00:24]} d6 {[%emt 0:04:34]} 6. Nc3 {[%emt 0:00:36] A04: Unusual lines after 1 Nf3 and King's Indian Attack.} h5 {[%emt 0:01:41]} 7. Nd5 {[%emt 0:02:33] [#]} Be6 $146 {[%emt 0:02:37]} ({Predecessor:} 7... h4 8. Nxe7 Ngxe7 9. Nxh4 Be6 10. d3 Qd7 11. Re1 O-O-O 12. e3 g5 13. Nf3 Rdg8 {0-1 (24) Shuganov,Y (2192)-Masyagutova,L (2035) Ufa 2004}) 8. Nxe7 {[%emt 0:00:24]} (8. h4 $142) 8... Ngxe7 $11 {[%emt 0:00:09]} 9. d3 {[%emt 0:00:08]} f6 {[%emt 0:02:13] Against Ng5} 10. e4 {[%emt 0:03:29]} Qd7 {[%emt 0:03:35]} 11. h4 {[%emt 0:02:47]} Bg4 {[%emt 0:04:19][%cal Og7g5]} 12. Be3 {[%emt 0:04:25] Against g5} Nd4 {[%emt 0:05:38]} 13. Bxd4 {[%emt 0:00:18]} cxd4 {[%emt 0:00:06]} 14. Qd2 {[%emt 0:00:45]} a5 {[%emt 0:08:52]} ({Black should try} 14... Bxf3 $17 15. Bxf3 O-O-O) 15. Rfc1 {[%emt 0:00:10]} b6 {[%emt 0:00:20]} 16. a4 {[%emt 0:00:13]} (16. Nh2 $11) 16... Nc6 $15 {[%emt 0:00:24]} 17. Nh2 {[%emt 0:04:04]} Bh3 {[%emt 0:02:58]} 18. f4 {[%emt 0:00:29]} Nb4 {[%emt 0:04:11]} 19. f5 {[%emt 0:01:55]} Bxg2 {[%emt 0:01:26] Black is more active.} 20. Kxg2 {[%emt 0:00:11]} O-O-O {[%emt 0:03:22]} 21. Rf1 {[%emt 0:00:50]} Rdg8 {[%emt 0:00:18]} 22. b3 {[%emt 0:03:20]} Qc6 {[%emt 0:02:52]} 23. Rf3 {[%emt 0:00:37]} Na6 {[%emt 0:00:53]} 24. Qf2 {[%emt 0:01:33]} Qc5 {[%emt 0:00:16]} 25. Qd2 {[%emt 0:01:13]} Qb4 {[%emt 0:01:12]} 26. Qxb4 {[%emt 0:00:34]} Nxb4 {[%emt 0:00:04]} 27. Nf1 {[%emt 0:00:39]} Kd7 {[%emt 0:00:42]} 28. Kh3 {[%emt 0:03:04]} Kc6 {[%emt 0:01:03]} 29. Kh2 {[%emt 0:01:42]} Kc5 {[%emt 0:45:47]} 30. Rb1 {[%emt 1:07:37] Weighted Error Value: White=0.18 (very precise) /Black=0.11 (very precise)} 0-1

[Event "FISCA Open 2022"]
[Site "Cap Aurora"]
[Date "2022.06.22"]
[Round "1.2"]
[White "Ardeleanu, Alin"]
[Black "Bujorean, Dorel"]
[Result "1-0"]
[ECO "B40"]
[WhiteElo "2290"]
[BlackElo "1608"]
[Annotator "NA RC"]
[PlyCount "75"]
[EventDate "2022.06.22"]
[EventType "swiss"]
[EventCountry "ROU"]
[SourceTitle "playchess.com"]
[Source "ChessBase"]
[SourceQuality "1"]
[TimeControl "5400+30"]

1. e4 {[%emt 0:00:12]} c5 {[%emt 0:00:07]} 2. b3 {[%emt 0:00:25]} a6 {[%emt 0:01:48]} 3. Bb2 {[%emt 0:00:22]} Nc6 {[%emt 0:00:27]} 4. Nf3 {[%emt 0:04:29]} d6 {[%emt 0:00:56]} 5. d4 {[%emt 0:00:41]} cxd4 {[%emt 0:00:20]} 6. Nxd4 {[%emt 0:00:02]} Qc7 {[%emt 0:01:19]} 7. c4 {[%emt 0:01:21]} Nf6 {[%emt 0:02:12]} 8. Nc3 {[%emt 0:04:04]} e6 {[%emt 0:00:24]} 9. Be2 {[%emt 0:03:33]} Be7 {[%emt 0:01:04]} 10. O-O {[%emt 0:01:06]} O-O {[%emt 0:00:51]} 11. Rc1 {[%emt 0:02:23]} Nxd4 {[%emt 0:01:29]} 12. Qxd4 {[%emt 0:00:02]} Bd7 {[%emt 0:00:21]} 13. Rfd1 {[%emt 0:03:08]} Rac8 {[%emt 0:01:17]} 14. a4 {[%emt 0:01:13]} Rfd8 {[%emt 0:05:49]} 15. Ba3 {[%emt 0:05:54]} Be8 {[%emt 0:08:04]} 16. Qe3 {[%emt 0:17:12]} Nd7 {[%emt 0:03:27]} 17. f4 {[%emt 0:00:28]} Nc5 {[%emt 0:01:03]} 18. Rb1 {[%emt 0:05:23]} b6 {[%emt 0:03:21]} 19. Bf3 {[%emt 0:02:17]} h6 {[%emt 0:06:29]} 20. Bb4 {[%emt 0:04:13]} Bf6 {[%emt 0:05:42]} 21. Ne2 {[%emt 0:05:30]} e5 {[%emt 0:03:37]} 22. g3 {[%emt 0:14:44]} a5 {[%emt 0:05:45]} 23. Ba3 {[%emt 0:01:39]} Bc6 {[%emt 0:01:49]} 24. fxe5 {[%emt 0:14:20]} dxe5 {[%emt 0:00:27]} 25. Bxc5 {[%emt 0:02:28]} Rxd1+ {[%emt 0:03:23]} 26. Rxd1 {[%emt 0:00:05]} bxc5 {[%emt 0:00:38]} 27. Nc3 {[%emt 0:01:08]} Qb7 {[%emt 0:01:11]} 28. Nb5 {[%emt 0:04:14]} Bxb5 {[%emt 0:01:02]} 29. axb5 {[%emt 0:00:08]} Bg5 {[%emt 0:01:09]} 30. Qc3 {[%emt 0:00:21]} Qc7 {[%emt 0:00:14]} 31. Rd5 {[%emt 0:00:12]} Bf6 {[%emt 0:01:59]} 32. Kg2 {[%emt 0:00:49]} Qb6 {[%emt 0:05:37]} 33. Bg4 {[%emt 0:01:10]} Rc7 {[%emt 0:00:50]} 34. Qd3 {[%emt 0:00:41]} Qb8 {[%emt 0:01:06]} 35. Qe3 {[%emt 0:00:45]} Qb6 {[%emt 0:05:27]} 36. Qd2 {[%emt 0:00:35]} Ra7 {[%emt 0:00:25]} 37. Rd6 {[%emt 0:00:07]} Qc7 {[%emt 0:00:32]} 38. b6 {[%emt 0:00:23]} 1-0

[Event "FISCA Open 2022"]
[Site "Cap Aurora"]
[Date "2022.06.22"]
[Round "1.3"]
[White "Chicarosie, Ioana-Bianca"]
[Black "Gilea, Lucian"]
[Result "0-1"]
[ECO "A39"]
[WhiteElo "1605"]
[BlackElo "2277"]
[Annotator "NA RC"]
[PlyCount "124"]
[EventDate "2022.06.22"]
[EventType "swiss"]
[EventCountry "ROU"]
[SourceTitle "playchess.com"]
[Source "ChessBase"]
[SourceQuality "1"]
[TimeControl "5400+30"]

1. d4 {[%emt 0:00:03]} Nf6 {[%emt 0:00:05]} 2. Nf3 {[%emt 0:00:11]} c5 {[%emt 0:00:19]} 3. c4 {[%emt 0:01:48]} cxd4 {[%emt 0:01:06]} 4. Nxd4 {[%emt 0:00:15]} g6 {[%emt 0:00:31]} 5. g3 {[%emt 0:00:58]} Bg7 {[%emt 0:00:18]} 6. Bg2 {[%emt 0:02:56]} Nc6 {[%emt 0:02:08]} 7. Nc3 {[%emt 0:02:45]} O-O {[%emt 0:00:45]} 8. O-O {[%emt 0:01:16]} Qb6 {[%emt 0:08:07]} 9. Ndb5 {[%emt 0:16:07]} Qc5 {[%emt 0:04:38]} 10. b3 {[%emt 0:06:15]} a6 {[%emt 0:03:19]} 11. Be3 {[%emt 0:05:59]} Qh5 {[%emt 0:00:19]} 12. Nd4 {[%emt 0:07:19]} Ng4 {[%emt 0:00:47]} 13. h3 {[%emt 0:00:25]} Nxe3 {[%emt 0:00:08]} 14. fxe3 {[%emt 0:00:12]} Qg5 {[%emt 0:01:03]} 15. Kh2 {[%emt 0:06:53]} Qxe3 {[%emt 0:00:50]} 16. Nxc6 {[%emt 0:00:48]} dxc6 {[%emt 0:00:49]} 17. Rf3 {[%emt 0:01:16]} Qe5 {[%emt 0:00:40]} 18. e4 {[%emt 0:02:31]} h5 {[%emt 0:00:36]} 19. Qd2 {[%emt 0:04:43]} h4 {[%emt 0:01:31]} 20. Rd1 {[%emt 0:03:43]} hxg3+ {[%emt 0:02:11]} 21. Kh1 {[%emt 0:02:39]} Be6 {[%emt 0:00:58]} 22. Qe3 {[%emt 0:06:41]} Rad8 {[%emt 0:01:09]} 23. Rd3 {[%emt 0:02:18]} Rxd3 {[%emt 0:04:13]} 24. Qxd3 {[%emt 0:00:11]} Qxc3 {[%emt 0:00:35]} 25. Qxc3 {[%emt 0:00:07]} Bxc3 {[%emt 0:00:04]} 26. Rxc3 {[%emt 0:00:06]} Rd8 {[%emt 0:00:02]} 27. Rxg3 {[%emt 0:00:54]} Rd2 {[%emt 0:00:10]} 28. a4 {[%emt 0:00:45]} Kg7 {[%emt 0:00:02]} 29. Re3 {[%emt 0:01:22]} c5 {[%emt 0:03:36]} 30. Kh2 {[%emt 0:06:04]} Bd7 {[%emt 0:00:52]} 31. Kg3 {[%emt 0:00:52]} Bc6 {[%emt 0:00:06]} 32. Bf3 {[%emt 0:02:05]} e5 {[%emt 0:00:07]} 33. h4 {[%emt 0:02:30]} Kf6 {[%emt 0:00:38]} 34. h5 {[%emt 0:01:00]} gxh5 {[%emt 0:03:17]} 35. Bxh5 {[%emt 0:00:17]} Rd4 {[%emt 0:00:08]} 36. Kf3 {[%emt 0:01:13]} Bd7 {[%emt 0:01:48]} 37. Kg3 {[%emt 0:01:09]} Be6 {[%emt 0:00:27]} 38. Bf3 {[%emt 0:02:29]} Kg5 {[%emt 0:02:37]} 39. Bg2 {[%emt 0:01:19]} Bd7 {[%emt 0:00:08]} 40. Kf2 {[%emt 0:02:57]} Rd2+ {[%emt 0:00:51]} 41. Kg3 {[%emt 0:00:26]} a5 {[%emt 0:01:23]} 42. Bf3 {[%emt 0:00:36]} f6 {[%emt 0:00:36]} 43. Be2 {[%emt 0:00:50]} Rd4 {[%emt 0:00:43]} 44. Bf3 {[%emt 0:00:38]} Bc6 {[%emt 0:00:34]} 45. Re2 {[%emt 0:03:00]} Rd3 {[%emt 0:00:07]} 46. Rg2 {[%emt 0:01:47]} f5 {[%emt 0:00:59]} 47. Kf2+ {[%emt 0:00:36]} Kf6 {[%emt 0:00:03]} 48. Be2 {[%emt 0:00:07]} Rxb3 {[%emt 0:00:10]} 49. Rh2 {[%emt 0:00:23]} Bxe4 {[%emt 0:00:15]} 50. Rh6+ {[%emt 0:00:18]} Kf7 {[%emt 0:00:36]} 51. Bh5+ {[%emt 0:00:26]} Ke7 {[%emt 0:00:08]} 52. Rh7+ {[%emt 0:00:34]} Kf6 {[%emt 0:00:02]} 53. Rc7 {[%emt 0:00:22]} b6 {[%emt 0:00:08]} 54. Bd1 {[%emt 0:01:15]} Rb1 {[%emt 0:00:21]} 55. Be2 {[%emt 0:00:25]} f4 {[%emt 0:00:14]} 56. Rd7 {[%emt 0:00:22]} Rb2 {[%emt 0:00:18]} 57. Ke1 {[%emt 0:00:12]} f3 {[%emt 0:00:15]} 58. Bf1 {[%emt 0:00:13]} Kg5 {[%emt 0:00:48]} 59. Rf7 {[%emt 0:00:39]} Bf5 {[%emt 0:00:23]} 60. Rg7+ {[%emt 0:00:21]} Kf4 {[%emt 0:00:08]} 61. Re7 {[%emt 0:01:12]} e4 {[%emt 0:00:27]} 62. Re8 {[%emt 0:00:25]} e3 {[%emt 0:00:15]} 0-1

[Event "FISCA Open 2022"]
[Site "Cap Aurora"]
[Date "2022.06.22"]
[Round "1.4"]
[White "Coca, Cristi-Iulian"]
[Black "Mihalca, Imre-Gheorghe"]
[Result "1-0"]
[ECO "B01"]
[WhiteElo "2174"]
[BlackElo "1551"]
[Annotator "TA"]
[PlyCount "47"]
[EventDate "2022.06.22"]
[EventType "swiss"]
[EventCountry "ROU"]
[SourceTitle "playchess.com"]
[Source "ChessBase"]
[SourceQuality "1"]
[TimeControl "5400+30"]

{[%evp 9,47,71,62,58,81,79,104,94,111,112,159,129,141,133,182,159,323,321,314,205,220,210,214,209,319,298,294,273,706,706,683,661,941,622,1230,800,796,783,885,816]} 1. e4 {[%emt 0:00:03]} d5 {[%emt 0:00:31]} 2. exd5 {[%emt 0:00:19]} Nf6 {[%emt 0:00:07]} 3. d4 {[%emt 0:07:14]} e6 {[%emt 0:00:10]} 4. Bb5+ {[%emt 0:01:11]} c6 {[%emt 0:01:16]} 5. dxc6 {[%emt 0:00:24]} bxc6 {[%emt 0:01:46]} 6. Be2 {[%emt 0:01:31] B01: Scandinavian Defence.} Bd6 {[%emt 0:02:07]} 7. Nf3 {[%emt 0:01:40] [#]} Nbd7 $146 {[%emt 0:02:22]} ({Predecessor:} 7... O-O 8. O-O Qc7 9. Nc3 Nbd7 10. Bg5 Rb8 11. Rb1 h6 12. Bh4 Nh5 13. Ne4 f5 14. Nxd6 Qxd6 {1-0 (51) Gazik,I (2435)-Galego,L (2405) Debrecen 1992}) 8. Nbd2 {[%emt 0:02:37] White is better.} Bc7 {[%emt 0:21:26]} 9. Nc4 {[%emt 0:02:22]} Ne4 {[%emt 0:06:46]} (9... O-O $142) 10. O-O {[%emt 0:02:14]} Bb7 {[%emt 0:12:46]} 11. Nfe5 {[%emt 0:07:24]} Ndf6 {[%emt 0:14:51]} (11... O-O $16) 12. Bf3 {[%emt 0:03:53]} Qe7 $2 {[%emt 0:05:48]} (12... c5 $16 {is a better defense.}) 13. Re1 $18 {[%emt 0:06:15]} c5 {[%emt 0:01:18]} 14. c3 {[%emt 0:00:36] [#] aiming for Bg5.} cxd4 {[%emt 0:05:42]} 15. Qa4+ {[%emt 0:00:31]} ({Don't take} 15. Qxd4 $6 O-O $16) 15... Kf8 {[%emt 0:00:36]} 16. cxd4 {[%emt 0:00:14]} Nd6 {[%emt 0:00:38]} (16... Bd5 $142 17. b3 (17. Nc6 Qd7 $18) 17... Nc3) 17. Bxb7 {[%emt 0:02:38]} Nxb7 {[%emt 0:00:56]} 18. b3 {[%emt 0:01:30]} Qe8 $2 {[%emt 0:00:45]} (18... Kg8 19. Ba3 Qe8) 19. Qb4+ {[%emt 0:00:09] White is clearly winning.} Nd6 {[%emt 0:10:35]} 20. Nxd6 {[%emt 0:00:34]} Qe7 {[%emt 0:00:05]} 21. Ba3 {[%emt 0:00:28] [#] Strongly threatening Qb7.} Rb8 {[%emt 0:00:06] Prevents Qb7.} 22. Qxb8+ {[%emt 0:00:38]} Bxb8 {[%emt 0:00:24]} 23. Ndc4 {[%emt 0:00:04]} Bxe5 {[%emt 0:02:46]} 24. Bxe7+ {[%emt 0:00:16] Black did not feel at home in the position after the opening.  Weighted Error Value: White=0.40/Black=0.50} 1-0

[Event "FISCA Open 2022"]
[Site "Cap Aurora"]
[Date "2022.06.22"]
[Round "1.5"]
[White "Costache, Andrei Eugeniu"]
[Black "Daianu, Cristian-Clement"]
[Result "0-1"]
[ECO "B50"]
[WhiteElo "1479"]
[BlackElo "2149"]
[Annotator "NA RC"]
[PlyCount "144"]
[EventDate "2022.06.22"]
[EventType "swiss"]
[EventCountry "ROU"]
[SourceTitle "playchess.com"]
[Source "ChessBase"]
[SourceQuality "1"]
[TimeControl "5400+30"]

1. e4 {[%emt 0:00:03]} c5 {[%emt 0:00:05]} 2. Nf3 {[%emt 0:00:24]} d6 {[%emt 0:00:05]} 3. c3 {[%emt 0:00:09]} Nf6 {[%emt 0:00:25]} 4. Be2 {[%emt 0:00:14]} Nc6 {[%emt 0:01:43]} 5. d4 {[%emt 0:00:17]} cxd4 {[%emt 0:01:00]} 6. cxd4 {[%emt 0:00:14]} Nxe4 {[%emt 0:01:18]} 7. d5 {[%emt 0:00:12]} Qa5+ {[%emt 0:00:08]} 8. Nc3 {[%emt 0:00:12]} Nxc3 {[%emt 0:01:10]} 9. bxc3 {[%emt 0:00:13]} Ne5 {[%emt 0:11:38]} 10. Nxe5 {[%emt 0:00:18]} dxe5 {[%emt 0:00:02]} 11. O-O {[%emt 0:00:28]} g6 {[%emt 0:01:04]} 12. Qb3 {[%emt 0:01:28]} Qc7 {[%emt 0:04:15]} 13. f4 {[%emt 0:01:26]} Bg7 {[%emt 0:01:16]} 14. fxe5 {[%emt 0:00:24]} O-O {[%emt 0:01:40]} 15. e6 {[%emt 0:01:57]} Qxc3 {[%emt 0:01:45]} 16. exf7+ {[%emt 0:01:33]} Rxf7 {[%emt 0:00:14]} 17. Rxf7 {[%emt 0:01:32]} Bd4+ {[%emt 0:10:59]} 18. Kh1 {[%emt 0:07:07]} Kxf7 {[%emt 0:10:26]} 19. Qxc3 {[%emt 0:00:20]} Bxc3 {[%emt 0:00:01]} 20. Rb1 {[%emt 0:00:21]} b6 {[%emt 0:00:43]} 21. Bc4 {[%emt 0:01:27]} Kg7 {[%emt 0:12:34]} 22. Ba3 {[%emt 0:02:11]} Bf5 {[%emt 0:05:56]} 23. Rb3 {[%emt 0:04:18]} Bf6 {[%emt 0:00:20]} 24. Re3 {[%emt 0:00:45]} Rc8 {[%emt 0:02:07]} 25. Ba6 {[%emt 0:00:35]} Rc2 {[%emt 0:02:29]} 26. h3 {[%emt 0:01:59]} Rxa2 {[%emt 0:01:49]} 27. Bc4 {[%emt 0:00:14]} Ra1+ {[%emt 0:01:15]} 28. Kh2 {[%emt 0:00:13]} Kf8 {[%emt 0:06:10]} 29. d6 {[%emt 0:00:17]} exd6 {[%emt 0:00:15]} 30. Bxd6+ {[%emt 0:00:30]} Kg7 31. Re8 {[%emt 0:00:30]} Kh6 {[%emt 0:01:00]} 32. Rf8 {[%emt 0:00:30]} Bg7 {[%emt 0:00:30]} 33. Rf7 {[%emt 0:00:30]} Ra4 {[%emt 0:00:30]} 34. Bb5 {[%emt 0:00:30]} Rd4 {[%emt 0:00:30]} 35. Bc7 {[%emt 0:00:30]} Rd5 {[%emt 0:00:30]} 36. Be2 {[%emt 0:00:30]} Be5+ {[%emt 0:00:30]} 37. Bxe5 {[%emt 0:00:30]} Rxe5 {[%emt 0:00:30]} 38. Bf3 {[%emt 0:00:30]} a5 {[%emt 0:00:30]} 39. h4 {[%emt 0:00:30]} Be4 {[%emt 0:00:30]} 40. g4 {[%emt 0:00:30]} g5 {[%emt 0:00:30]} 41. Bxe4 {[%emt 0:00:30]} Rxe4 {[%emt 0:00:30]} 42. Rf6+ {[%emt 0:00:30]} Kg7 43. Rxb6 {[%emt 0:04:20]} Rxg4 {[%emt 0:19:57]} 44. Rb5 {[%emt 0:00:50]} Rxh4+ {[%emt 0:00:12]} 45. Kg3 {[%emt 0:00:12]} Kg6 {[%emt 0:01:18]} 46. Rxa5 {[%emt 0:00:16]} Rb4 {[%emt 0:00:24]} 47. Ra6+ {[%emt 0:00:16]} Kh5 {[%emt 0:00:26]} 48. Ra3 {[%emt 0:00:09]} Rb6 {[%emt 0:00:20]} 49. Ra8 {[%emt 0:00:57]} Rb3+ {[%emt 0:00:08]} 50. Kg2 {[%emt 0:00:18]} Kh4 {[%emt 0:00:13]} 51. Ra6 {[%emt 0:00:55]} Rb2+ {[%emt 0:00:17]} 52. Kg1 {[%emt 0:00:40]} h5 {[%emt 0:00:27]} 53. Ra1 {[%emt 0:00:20]} g4 {[%emt 0:00:44]} 54. Rc1 {[%emt 0:00:12]} Kh3 {[%emt 0:00:15]} 55. Rc3+ {[%emt 0:00:21]} g3 {[%emt 0:00:07]} 56. Rc1 {[%emt 0:00:11]} h4 {[%emt 0:00:34]} 57. Ra1 {[%emt 0:00:20]} Rg2+ {[%emt 0:00:34]} 58. Kh1 {[%emt 0:00:22]} Rf2 {[%emt 0:00:15]} 59. Kg1 {[%emt 0:00:37]} Kg4 {[%emt 0:00:08]} 60. Ra4+ {[%emt 0:00:32]} Rf4 {[%emt 0:00:06]} 61. Ra1 {[%emt 0:00:26]} Re4 {[%emt 0:00:54]} 62. Rb1 {[%emt 0:00:34]} h3 {[%emt 0:00:24]} 63. Ra1 {[%emt 0:00:29]} Kf3 {[%emt 0:00:30]} 64. Ra3+ {[%emt 0:00:17]} Re3 {[%emt 0:00:09]} 65. Ra1 {[%emt 0:00:09]} Rd3 {[%emt 0:00:06]} 66. Re1 {[%emt 0:02:21]} Rd2 {[%emt 0:00:34]} 67. Kh1 {[%emt 0:00:41]} Kf2 {[%emt 0:00:55]} 68. Rg1 {[%emt 0:01:25]} Rd3 {[%emt 0:01:35]} 69. Rf1+ {[%emt 0:01:37]} Ke2 {[%emt 0:00:05]} 70. Rg1 {[%emt 0:00:33]} Rd1 {[%emt 0:00:14]} 71. Rxd1 {[%emt 0:00:16]} Kxd1 {[%emt 0:00:04]} 72. Kg1 {[%emt 0:00:16]} Ke2 {[%emt 0:00:14]} 0-1

[Event "FISCA Open 2022"]
[Site "Cap Aurora"]
[Date "2022.06.22"]
[Round "1.6"]
[White "Breahna, Radu"]
[Black "Calota, Rares-Stefan"]
[Result "1-0"]
[ECO "A25"]
[WhiteElo "2142"]
[BlackElo "1523"]
[Annotator "NA RC"]
[PlyCount "81"]
[EventDate "2022.06.22"]
[EventType "swiss"]
[EventCountry "ROU"]
[SourceTitle "playchess.com"]
[Source "ChessBase"]
[SourceQuality "1"]
[TimeControl "5400+30"]

1. c4 {[%emt 0:00:05]} Nf6 {[%emt 0:00:17]} 2. g3 {[%emt 0:00:22]} g6 {[%emt 0:00:51]} 3. Bg2 {[%emt 0:00:21]} Bg7 {[%emt 0:01:47]} 4. Nc3 {[%emt 0:00:27]} d6 {[%emt 0:00:42]} 5. e3 {[%emt 0:01:23]} O-O {[%emt 0:02:49]} 6. Nge2 {[%emt 0:00:24]} e5 {[%emt 0:02:13]} 7. O-O {[%emt 0:01:02]} Nc6 {[%emt 0:06:40]} 8. d3 {[%emt 0:01:42]} Re8 {[%emt 0:05:53]} 9. Rb1 {[%emt 0:11:40]} a5 {[%emt 0:09:10]} 10. a3 {[%emt 0:03:49]} Bf5 {[%emt 0:10:32]} 11. e4 {[%emt 0:04:48]} Bd7 {[%emt 0:02:46]} 12. b4 {[%emt 0:03:35]} axb4 {[%emt 0:00:35]} 13. axb4 {[%emt 0:00:12]} Nd4 {[%emt 0:12:21]} 14. Nxd4 {[%emt 0:05:36]} exd4 {[%emt 0:00:16]} 15. Ne2 {[%emt 0:00:14]} Ba4 {[%emt 0:02:17]} 16. Qd2 {[%emt 0:01:15]} Nd7 {[%emt 0:15:26]} 17. Bb2 {[%emt 0:16:05]} c5 {[%emt 0:04:31]} 18. Ba1 {[%emt 0:27:19]} Rb8 {[%emt 0:05:50]} 19. b5 {[%emt 0:02:23]} Qe7 {[%emt 0:03:20]} 20. Nf4 {[%emt 0:07:43]} Bh6 {[%emt 0:02:13]} 21. Qa2 {[%emt 0:02:20]} Bxf4 {[%emt 0:01:32]} 22. Qxa4 {[%emt 0:00:19]} Ra8 {[%emt 0:01:38]} 23. Qc2 {[%emt 0:01:16]} Bh6 {[%emt 0:00:15]} 24. Bb2 {[%emt 0:02:38]} Ne5 {[%emt 0:02:54]} 25. Ra1 {[%emt 0:00:56]} Qc7 {[%emt 0:00:55]} 26. h3 {[%emt 0:00:30]} Kh8 {[%emt 0:02:06]} 27. f4 {[%emt 0:00:28]} Nd7 {[%emt 0:00:27]} 28. Kh2 {[%emt 0:01:28]} Kg8 {[%emt 0:00:36]} 29. h4 {[%emt 0:00:50]} Nf6 {[%emt 0:02:29]} 30. Bf3 {[%emt 0:02:21]} Qd7 {[%emt 0:00:50]} 31. Qe2 {[%emt 0:00:22]} d5 {[%emt 0:01:01]} 32. e5 {[%emt 0:00:44]} Rxa1 {[%emt 0:00:19]} 33. Rxa1 {[%emt 0:00:14]} dxc4 {[%emt 0:00:35]} 34. dxc4 {[%emt 0:00:32]} Qe7 {[%emt 0:00:50]} 35. Ra7 {[%emt 0:01:16]} Qd8 {[%emt 0:01:04]} 36. Rxb7 {[%emt 0:00:52]} d3 {[%emt 0:00:00]} 37. Qd1 {[%emt 0:00:45]} Nh5 {[%emt 0:00:20]} 38. Bxh5 {[%emt 0:00:28]} gxh5 {[%emt 0:00:25]} 39. Qxh5 {[%emt 0:00:38]} Rf8 {[%emt 0:00:39]} 40. Qxh6 {[%emt 0:00:33]} d2 {[%emt 0:00:13]} 41. e6 {[%emt 0:00:15]} 1-0

[Event "FISCA Open 2022"]
[Site "Cap Aurora"]
[Date "2022.06.22"]
[Round "1.7"]
[White "Roncea, Andreea-Alexandra"]
[Black "Girmacea, Bogdan"]
[Result "1/2-1/2"]
[ECO "C02"]
[WhiteElo "1463"]
[BlackElo "2133"]
[Annotator "NA RC"]
[PlyCount "54"]
[EventDate "2022.06.22"]
[EventType "swiss"]
[EventCountry "ROU"]
[SourceTitle "playchess.com"]
[Source "ChessBase"]
[SourceQuality "1"]
[TimeControl "5400+30"]

1. e4 {[%emt 0:00:05]} e6 {[%emt 0:00:21]} 2. d4 {[%emt 0:00:09]} d5 {[%emt 0:00:08]} 3. e5 {[%emt 0:00:06]} c5 {[%emt 0:00:21]} 4. c3 {[%emt 0:00:13]} Nc6 {[%emt 0:00:10]} 5. Nf3 {[%emt 0:00:10]} Bd7 {[%emt 0:00:14]} 6. a3 {[%emt 0:00:41]} f6 {[%emt 0:01:21]} 7. exf6 {[%emt 0:04:54]} Nxf6 {[%emt 0:00:28]} 8. Bd3 {[%emt 0:01:33]} Bd6 {[%emt 0:02:16]} 9. O-O {[%emt 0:01:14]} O-O {[%emt 0:00:22]} 10. b4 {[%emt 0:01:21]} cxd4 {[%emt 0:02:49]} 11. cxd4 {[%emt 0:00:29]} Rc8 {[%emt 0:04:19]} 12. Nbd2 {[%emt 0:02:28]} e5 {[%emt 0:07:48]} 13. dxe5 {[%emt 0:01:42]} Nxe5 {[%emt 0:00:10]} 14. Nxe5 {[%emt 0:01:10]} Bxe5 {[%emt 0:00:12]} 15. Rb1 {[%emt 0:00:56]} Bxh2+ {[%emt 0:21:19]} 16. Kxh2 {[%emt 0:06:52]} Ng4+ {[%emt 0:00:09]} 17. Kg3 {[%emt 0:01:57]} Rxf2 {[%emt 0:17:46]} 18. Rxf2 {[%emt 0:05:50]} Qc7+ {[%emt 0:00:50]} 19. Rf4 {[%emt 0:00:42]} g5 {[%emt 0:00:35]} 20. Nf3 {[%emt 0:01:21]} gxf4+ {[%emt 0:01:46]} 21. Bxf4 {[%emt 0:00:17]} Qb6 {[%emt 0:01:05]} 22. Qd2 {[%emt 0:02:43]} Rf8 {[%emt 0:03:17]} 23. Rh1 {[%emt 0:04:33]} Rxf4 {[%emt 0:05:31]} 24. Bxh7+ {[%emt 0:10:34]} Kg7 {[%emt 0:00:54]} 25. Qxd5 {[%emt 0:05:20]} Qf2+ {[%emt 0:16:02]} 26. Kxf4 {[%emt 0:00:15]} Qe3+ {[%emt 0:00:07]} 27. Kg3 {[%emt 0:00:18]} Qf2+ {[%emt 0:13:40]} 1/2-1/2

[Event "FISCA Open 2022"]
[Site "Cap Aurora"]
[Date "2022.06.22"]
[Round "1.8"]
[White "Mintau, Andrei-Catalin"]
[Black "Grigore, Matei"]
[Result "1-0"]
[ECO "B42"]
[WhiteElo "2130"]
[BlackElo "1560"]
[Annotator "NA RC"]
[PlyCount "51"]
[EventDate "2022.06.22"]
[EventType "swiss"]
[EventCountry "ROU"]
[SourceTitle "playchess.com"]
[Source "ChessBase"]
[SourceQuality "1"]
[TimeControl "5400+30"]

1. e4 {[%emt 0:00:03]} c5 {[%emt 0:00:01]} 2. Nf3 {[%emt 0:00:04]} e6 {[%emt 0:00:05]} 3. d4 {[%emt 0:00:02]} cxd4 {[%emt 0:00:04]} 4. Nxd4 {[%emt 0:00:03]} a6 {[%emt 0:00:03]} 5. Bd3 {[%emt 0:00:08]} Nc6 {[%emt 0:00:43]} 6. Nxc6 {[%emt 0:00:21]} bxc6 {[%emt 0:00:05]} 7. c4 {[%emt 0:00:15]} Nf6 {[%emt 0:00:43]} 8. O-O {[%emt 0:00:09]} Qc7 {[%emt 0:00:48]} 9. Qe2 {[%emt 0:11:26]} d6 {[%emt 0:10:42]} 10. Kh1 {[%emt 0:11:58]} Be7 {[%emt 0:06:10]} 11. f4 {[%emt 0:01:24]} O-O {[%emt 0:03:33]} 12. e5 {[%emt 0:08:33]} Nd7 {[%emt 0:05:01]} 13. Re1 {[%emt 0:07:44]} d5 {[%emt 0:08:03]} 14. f5 {[%emt 0:07:45]} exf5 {[%emt 0:11:55]} 15. Bxf5 {[%emt 0:04:23]} dxc4 {[%emt 0:03:51]} 16. Bf4 {[%emt 0:16:14]} g6 {[%emt 0:12:11]} 17. Qg4 {[%emt 0:18:50]} Qa5 {[%emt 0:13:25]} 18. Nc3 {[%emt 0:02:55]} Nxe5 {[%emt 0:04:06]} 19. Rxe5 {[%emt 0:00:25]} Bxf5 {[%emt 0:00:13]} 20. Qe2 {[%emt 0:01:11]} Qc7 {[%emt 0:00:52]} 21. Rxf5 {[%emt 0:00:08]} Qd8 {[%emt 0:03:55]} 22. Re5 {[%emt 0:00:23]} Bd6 {[%emt 0:00:15]} 23. Re4 {[%emt 0:00:13]} Bxf4 {[%emt 0:00:29]} 24. Rxf4 {[%emt 0:00:01]} Rb8 {[%emt 0:00:48]} 25. Rxc4 {[%emt 0:00:20]} Re8 {[%emt 0:00:23]} 26. Qc2 {[%emt 0:00:02]} 1-0